bitfinex-derivatives/quotes_BTCF0:USTF0_20250417
["timestamp","ask_amount","ask_price","bid_price","bid_amount"]
[1744894462864,0.00537256,84870.0,84869.0,0.1769616]
[1744894463274,0.00937256,84870.0,84869.0,0.1769616]
[1744894464175,0.01137256,84870.0,84869.0,0.1769616]
[1744894478792,0.01137256,84870.0,84866.0,0.02]
[1744894478793,0.1178644,84867.0,84866.0,0.02]
[1744894479092,0.1178783,84857.0,84856.0,0.0301]
[1744894479293,0.1178797,84856.0,84855.0,0.17914193]
[1744894479487,0.5911797,84856.0,84855.0,0.17914193]
[1744894480787,0.5911797,84856.0,84855.0,0.18014193]
[1744894482185,0.5911797,84856.0,84855.0,0.18114193]
[1744894482794,0.5911797,84856.0,84855.0,0.18014193]
[1744894482994,0.5911797,84856.0,84855.0,0.17914193]
[1744894483192,0.5911797,84856.0,84855.0,0.001]
[1744894487082,0.5911797,84856.0,84855.0,0.0321]
[1744894491591,0.5911797,84856.0,84855.0,0.001]
[1744894493095,0.1178866,84851.0,84850.0,0.0303]
[1744894493290,0.1378866,84851.0,84850.0,0.0303]
[1744894493489,0.2006866,84851.0,84850.0,0.0303]
[1744894494993,0.1703866,84851.0,84850.0,0.148188]
[1744894495399,0.1703866,84851.0,84850.0,0.149188]
[1744894495694,0.1703866,84851.0,84850.0,0.182388]
[1744894495885,0.1703866,84851.0,84850.0,0.0635]
[1744894496091,0.2028866,84851.0,84850.0,0.0645]
[1744894496402,0.2028866,84851.0,84850.0,0.0323]
[1744894496985,0.2028866,84851.0,84850.0,0.2823]
[1744894498995,0.2028866,84851.0,84850.0,0.2813]
[1744894499399,0.4528866,84851.0,84850.0,0.2813]
[1744894504202,0.8136866,84851.0,84850.0,0.2813]
[1744894504395,0.7058,84851.0,84846.0,0.00740224]
[1744894504596,0.1178922,84847.0,84846.0,0.00740224]
[1744894504799,0.1478922,84847.0,84846.0,0.00740224]
[1744894505101,0.2114922,84847.0,84846.0,0.00740224]
[1744894505698,0.2114922,84847.0,84846.0,0.00840224]
[1744894506099,0.2114922,84847.0,84846.0,0.00940224]
[1744894506404,0.2114922,84847.0,84846.0,0.01040224]
[1744894507697,0.2114922,84847.0,84846.0,0.04300224]
[1744894507900,0.2114922,84847.0,84846.0,0.01040224]
[1744894508294,0.2114922,84847.0,84846.0,0.04300224]
[1744894509304,0.2114922,84847.0,84846.0,0.01040224]
[1744894509901,0.2114922,84847.0,84846.0,0.04300224]
[1744894512407,0.5722922,84847.0,84846.0,0.04300224]
[1744894514309,0.5622922,84847.0,84846.0,0.07350224]
[1744894514613,0.5622922,84847.0,84846.0,0.17350224]
[1744894516809,0.5986922,84847.0,84846.0,0.17350224]
[1744894517508,0.5987722,84847.0,84846.0,0.17350224]
[1744894518806,0.5987722,84847.0,84846.0,0.29139574]
[1744894519710,0.2379722,84847.0,84846.0,0.29139574]
[1744894524506,0.2379722,84847.0,84846.0,0.14300224]
[1744894524707,0.3092722,84847.0,84846.0,0.11040224]
[1744894526814,0.3092722,84847.0,84846.0,0.14330224]
[1744894528101,0.42931192,84847.0,84846.0,0.14330224]
[1744894529506,0.42931192,84847.0,84846.0,0.06264464]
[1744894529718,0.1179061,84837.0,84836.0,7e-08]
[1744894530013,0.1179061,84837.0,84832.0,0.02749885]
[1744894530014,0.1179116,84833.0,84832.0,0.02749885]
[1744894530215,0.5987116,84833.0,84832.0,0.02749885]
[1744894530413,0.117913,84832.0,84829.0,0.01079083]
[1744894530615,0.337913,84832.0,84829.0,0.01079083]
[1744894530803,0.400713,84832.0,84829.0,0.01079083]
[1744894531405,0.1179158,84830.0,84829.0,0.01079083]
[1744894531605,0.3179158,84830.0,84829.0,0.01079083]
[1744894531814,0.3832158,84830.0,84829.0,0.01079083]
[1744894533514,0.3832158,84830.0,84829.0,0.01479083]
[1744894533711,0.3832158,84830.0,84829.0,0.02079083]
[1744894534311,0.3832158,84830.0,84829.0,0.05309083]
[1744894535307,0.3832158,84830.0,84829.0,0.02079083]
[1744894535834,0.1179172,84829.0,84828.0,1e-08]
[1744894536016,0.3798172,84829.0,84828.0,1e-08]
[1744894536409,0.1179283,84821.0,84818.0,0.3]
[1744894536609,0.7487283,84821.0,84818.0,0.3323]
[1744894536823,0.8415283,84821.0,84818.0,0.3323]
[1744894537016,0.1179311,84819.0,84818.0,1e-08]
[1744894537217,0.1179408,84812.0,84811.0,0.02888849]
[1744894537408,0.1179436,84810.0,84808.0,0.02186656]
[1744894537607,0.1179464,84808.0,84806.0,0.01104241]
[1744894537807,0.5087464,84808.0,84806.0,0.01104241]
[1744894538212,0.5717464,84808.0,84806.0,0.01104241]
[1744894538817,0.5727464,84808.0,84807.0,0.03350536]
[1744894539015,0.5727464,84808.0,84803.0,0.0233668]
[1744894539016,0.4548,84808.0,84803.0,0.0233668]
[1744894539320,0.1179547,84802.0,84801.0,2e-08]
[1744894539510,0.1179589,84799.0,84798.0,0.0087636]
[1744894539712,0.2179589,84799.0,84798.0,0.0087636]
[1744894540721,0.2816589,84799.0,84798.0,0.0117636]
[1744894541221,0.2816589,84799.0,84798.0,0.0137636]
[1744894542120,0.2491589,84799.0,84798.0,0.0443636]
[1744894542325,0.2491589,84799.0,84798.0,0.1951239]
[1744894542517,0.1380389,84799.0,84798.0,0.1951239]
[1744894543116,0.1380389,84799.0,84798.0,0.0771636]
[1744894545113,0.1380389,84799.0,84798.0,0.1951239]
[1744894548422,0.1713389,84799.0,84798.0,0.1951239]
[1744894548820,0.1380389,84799.0,84798.0,0.1951239]
[1744894549324,0.1713389,84799.0,84798.0,0.1951239]
[1744894549825,0.1380389,84799.0,84798.0,0.1951239]
[1744894550423,0.1379589,84799.0,84798.0,0.1951239]
[1744894550628,0.1380389,84799.0,84798.0,0.1951239]
[1744894551020,0.1379589,84799.0,84798.0,0.1951239]
[1744894551325,0.1380389,84799.0,84798.0,0.1951239]
[1744894556530,0.02008,84799.0,84798.0,0.1951239]
[1744894557028,0.02,84799.0,84798.0,0.1951239]
[1744894557221,0.02008,84799.0,84798.0,0.1951239]
[1744894557922,0.02,84799.0,84798.0,0.1951239]
[1744894558225,0.02008,84799.0,84798.0,0.1951239]
[1744894558630,0.3608,84802.0,84801.0,0.1179561]
[1744894559028,0.3608,84802.0,84801.0,0.1812561]
[1744894559231,8e-05,84802.0,84801.0,0.1812561]
[1744894559616,8e-05,84802.0,84801.0,0.1832561]
[1744894560021,0.0589735,84808.0,84807.0,0.1769181]
[1744894561030,0.1769174,84810.0,84809.0,0.117945]
[1744894561222,0.0589724,84810.0,84809.0,0.117945]
[1744894561618,0.0589724,84810.0,84809.0,0.181245]
[1744894562223,0.0589724,84810.0,84809.0,0.182245]
[1744894563619,0.0609724,84810.0,84809.0,0.182245]
[1744894564119,0.0925724,84810.0,84809.0,0.182245]
[1744894571940,0.0925724,84810.0,84809.0,0.001]
[1744894572237,0.1245724,84810.0,84809.0,0.001]
[1744894573130,0.1245724,84810.0,84809.0,0.118945]
[1744894574431,0.1245724,84810.0,84809.0,0.001]
[1744894575638,0.1245724,84810.0,84809.0,0.118945]
[1744894577436,0.1245724,84810.0,84809.0,0.001]
[1744894578437,0.1245724,84810.0,84809.0,0.118945]
[1744894579025,0.1245724,84810.0,84809.0,0.001]
[1744894579531,0.1345724,84810.0,84809.0,0.001]
[1744894580828,0.4953724,84810.0,84809.0,0.001]
[1744894589131,0.4953724,84810.0,84809.0,0.118945]
[1744894589331,0.4853724,84810.0,84809.0,0.118945]
[1744894589537,0.4533724,84810.0,84809.0,0.118945]
[1744894589734,0.4534524,84810.0,84809.0,0.118945]
[1744894590036,0.4533724,84810.0,84809.0,0.118945]
[1744894590229,0.4533724,84810.0,84809.0,0.183845]
[1744894590430,0.4534524,84810.0,84809.0,0.183845]
[1744894599038,0.4534524,84810.0,84809.0,0.0659]
[1744894599748,0.4848524,84810.0,84809.0,0.0659]
[1744894600043,0.4848524,84810.0,84809.0,0.183845]
[1744894600648,0.4848524,84810.0,84809.0,0.0659]
[1744894601038,0.4848524,84810.0,84809.0,0.001]
[1744894601940,0.4848524,84810.0,84809.0,0.0623]
[1744894602141,0.4948524,84810.0,84809.0,0.0623]
[1744894602541,0.4634524,84810.0,84809.0,0.0313]
[1744894603048,0.4534524,84810.0,84809.0,0.149245]
[1744894603236,0.4534524,84810.0,84809.0,0.16514944]
[1744894604637,0.0610524,84810.0,84809.0,0.16514944]
[1744894605042,0.0609724,84810.0,84809.0,0.16514944]
[1744894605454,0.0609724,84810.0,84809.0,0.04720444]
[1744894605652,0.0919524,84810.0,84809.0,0.04720444]
[1744894605859,0.0919524,84810.0,84809.0,0.16514944]
[1744894606252,0.0919524,84810.0,84809.0,0.04720444]
[1744894606656,0.1228524,84810.0,84809.0,0.04720444]
[1744894606850,0.1328524,84810.0,84809.0,0.01690444]
[1744894617045,0.4936524,84810.0,84809.0,0.01690444]
[1744894617760,0.4936524,84810.0,84809.0,0.04870444]
[1744894617761,0.4627524,84810.0,84809.0,0.04870444]
[1744894617953,0.4626724,84810.0,84809.0,0.19854944]
[1744894618149,0.4627524,84810.0,84809.0,0.22984944]
[1744894619755,0.4527524,84810.0,84809.0,0.19794944]
[1744894621363,0.0609724,84810.0,84809.0,0.21074496]
[1744894621549,0.4218524,84810.0,84809.0,0.21074496]
[1744894621753,0.4539524,84810.0,84809.0,0.21074496]
[1744894622160,0.4539524,84810.0,84809.0,0.21074497]
[1744894622461,0.4539524,84810.0,84809.0,0.19794944]
[1744894641072,0.4870524,84810.0,84809.0,0.19794944]
[1744894642370,0.1262524,84810.0,84809.0,0.19794944]
[1744894642574,0.4870524,84810.0,84809.0,0.08000444]
[1744894642770,0.4870524,84810.0,84809.0,0.19794944]
[1744894643078,0.4870524,84810.0,84809.0,0.04820444]
[1744894644684,0.4870524,84810.0,84809.0,0.0323]
[1744894644974,0.4870524,84810.0,84809.0,0.150245]
[1744894645275,0.4870524,84810.0,84809.0,0.0642]
[1744894645885,0.4870524,84810.0,84809.0,0.182145]
[1744894646375,0.4870524,84810.0,84809.0,0.0642]
[1744894647365,0.4970524,84810.0,84809.0,0.0642]
[1744894649573,0.4970524,84810.0,84809.0,0.0842]
[1744894650877,0.4870524,84810.0,84809.0,0.0842]
[1744894651280,0.1262524,84810.0,84809.0,0.0842]
[1744894651577,0.4870524,84810.0,84809.0,0.0523]
[1744894653183,0.4870524,84810.0,84809.0,0.170245]
[1744894653382,0.4869724,84810.0,84809.0,0.170245]
[1744894654182,0.4869724,84810.0,84809.0,0.0523]
[1744894657379,0.4969724,84810.0,84809.0,0.0523]
[1744894657574,0.4969724,84810.0,84809.0,0.170245]
[1744894658982,0.4969724,84810.0,84809.0,0.0523]
[1744894660384,0.4969724,84810.0,84809.0,0.170245]
[1744894660683,0.4969724,84810.0,84809.0,0.0523]
[1744894661292,0.4969724,84810.0,84809.0,0.0839]
[1744894663093,0.4969724,84810.0,84809.0,0.201845]
[1744894663399,0.4638724,84810.0,84809.0,0.201845]
[1744894663592,0.4638724,84810.0,84809.0,0.234845]
[1744894664390,0.4538724,84810.0,84809.0,0.234845]
[1744894665289,0.4538724,84810.0,84809.0,0.2503653]
[1744894665982,0.4217724,84810.0,84809.0,0.2503653]
[1744894666283,0.14966872,84816.0,84815.0,0.1179366]
[1744894666485,0.3608,84829.0,84822.0,0.1179269]
[1744894666693,0.3608,84829.0,84822.0,0.1334472]
[1744894666894,0.4251,84839.0,84822.0,0.1334472]
[1744894666895,0.3608,84839.0,84833.0,0.1179116]
[1744894667192,0.1179084,84836.0,84833.0,0.1179116]
[1744894667392,0.0589526,84838.0,84833.0,0.2138116]
[1744894667595,0.20795414,84834.0,84833.0,0.2138116]
[1744894667894,0.32586434,84834.0,84833.0,0.2088116]
[1744894668197,0.32586434,84834.0,84833.0,0.23003035]
[1744894668589,0.33486434,84834.0,84833.0,0.23103035]
[1744894668989,0.36716434,84834.0,84833.0,0.23103035]
[1744894669384,0.37116434,84834.0,84833.0,0.23103035]
[1744894669589,0.36216434,84834.0,84833.0,0.23003035]
[1744894671192,0.1502902,84834.0,84833.0,0.23003035]
[1744894671399,0.1502902,84834.0,84833.0,0.23103035]
[1744894672291,0.1502902,84834.0,84833.0,0.23203035]
[1744894672688,0.1502902,84834.0,84833.0,0.23303035]
[1744894674194,0.1179902,84834.0,84833.0,0.23103035]
[1744894675100,0.1179902,84834.0,84833.0,0.23203035]
[1744894676086,0.1501902,84834.0,84833.0,0.23203035]
[1744894676594,8e-05,84834.0,84833.0,0.23203035]
[1744894676995,0.1179102,84834.0,84833.0,0.23203035]
[1744894677200,0.1179902,84834.0,84833.0,0.23203035]
[1744894678997,0.1502902,84834.0,84833.0,0.23203035]
[1744894680691,0.1502902,84834.0,84833.0,0.20183035]
[1744894681095,0.1816902,84834.0,84833.0,0.20083035]
[1744894681296,0.1816902,84834.0,84833.0,0.20183035]
[1744894681805,0.1816902,84834.0,84833.0,0.01086191]
[1744894682900,0.5424902,84834.0,84833.0,0.01086191]
[1744894683591,0.5424902,84834.0,84833.0,0.00986191]
[1744894684499,0.6324902,84834.0,84833.0,0.00986191]
[1744894686002,0.5424902,84834.0,84833.0,0.00986191]
[1744894689001,0.9032902,84834.0,84833.0,0.00986191]
[1744894700810,0.1816902,84834.0,84833.0,0.00986191]
[1744894701014,0.9032902,84834.0,84833.0,0.00986191]
[1744894701715,0.8395902,84834.0,84833.0,0.12777351]
[1744894701908,0.1179102,84834.0,84833.0,0.12777351]
[1744894702113,0.1179902,84834.0,84833.0,0.19027351]
[1744894702813,0.4787902,84834.0,84833.0,0.19027351]
[1744894703006,0.1179102,84834.0,84833.0,0.19027351]
[1744894703312,0.1179902,84834.0,84833.0,0.19027351]
[1744894704014,0.4787902,84834.0,84833.0,0.19027351]
[1744894704202,0.1179902,84834.0,84833.0,0.19027351]
[1744894706418,8e-05,84834.0,84833.0,0.19027351]
[1744894706719,0.1179902,84834.0,84833.0,0.19027351]
[1744894706914,0.1179102,84834.0,84833.0,0.19027351]
[1744894707116,0.1179902,84834.0,84833.0,0.19027351]
[1744894707420,0.1179102,84834.0,84833.0,0.19027351]
[1744894707611,0.1179902,84834.0,84833.0,0.19027351]
[1744894709721,0.4787902,84834.0,84833.0,0.19027351]
[1744894712219,0.1179902,84834.0,84833.0,0.19027351]
[1744894712522,0.1179902,84834.0,84833.0,0.07236191]
[1744894712714,0.2153902,84834.0,84833.0,0.07236191]
[1744894713307,0.2153902,84834.0,84833.0,0.04176191]
[1744894716606,0.2153902,84834.0,84833.0,0.00986191]
[1744894716810,0.2153902,84834.0,84825.0,0.00017684]
[1744894716811,0.1179213,84826.0,84825.0,0.00017684]
[1744894717106,0.1179213,84826.0,84822.0,0.02]
[1744894717107,0.1179255,84823.0,84822.0,0.02]
[1744894717322,0.1179311,84819.0,84818.0,0.02]
[1744894717512,0.1179339,84817.0,84816.0,0.18783599]
[1744894717711,0.4987339,84817.0,84816.0,0.18783599]
[1744894717910,0.5618339,84817.0,84816.0,0.18783599]
[1744894718207,0.5618339,84817.0,84816.0,0.21993599]
[1744894718408,0.5618339,84817.0,84816.0,0.18783599]
[1744894718608,0.5718339,84817.0,84816.0,0.18783599]
[1744894719116,0.5718339,84817.0,84816.0,0.00869406]
[1744894719317,0.117938,84814.0,84813.0,0.0321]
[1744894719517,0.137938,84814.0,84813.0,0.0321]
[1744894719711,0.201038,84814.0,84813.0,0.0321]
[1744894720824,0.202038,84814.0,84813.0,0.0321]
[1744894721235,0.562838,84814.0,84813.0,0.0321]
[1744894723826,0.562838,84814.0,84813.0,0.0408576]
[1744894726421,0.562838,84814.0,84813.0,0.189297]
[1744894726626,0.562838,84814.0,84813.0,0.0713576]
[1744894727927,0.202038,84814.0,84813.0,0.0713576]
[1744894728130,0.562838,84814.0,84813.0,0.0713576]
[1744894728323,0.202038,84814.0,84813.0,0.0713576]
[1744894728527,0.562838,84814.0,84813.0,0.189297]
[1744894728722,0.532738,84814.0,84813.0,0.189297]
[1744894729832,0.531738,84814.0,84813.0,0.189297]
[1744894730035,0.499738,84814.0,84813.0,0.189297]
[1744894730522,0.499818,84814.0,84813.0,0.189297]
[1744894730937,0.499818,84814.0,84813.0,0.2048313]
[1744894732226,0.530218,84814.0,84813.0,0.2048313]
[1744894732424,0.530218,84814.0,84813.0,0.2058313]
[1744894732732,0.529218,84814.0,84813.0,0.2068313]
[1744894733028,0.168418,84814.0,84813.0,0.2068313]
[1744894742329,0.529218,84814.0,84813.0,0.2068313]
[1744894746142,0.168418,84814.0,84813.0,0.2068313]
[1744894750334,0.168418,84814.0,84813.0,0.7068313]
[1744894752831,0.668418,84814.0,84813.0,0.7068313]
[1744894754942,0.699018,84814.0,84813.0,0.7068313]
[1744894755641,0.699018,84814.0,84813.0,0.5888919]
[1744894755943,0.699018,84814.0,84813.0,0.5262919]
[1744894756730,0.699018,84814.0,84813.0,0.5107576]
[1744894759545,0.709018,84814.0,84813.0,0.5107576]
[1744894760838,0.709018,84814.0,84813.0,0.5097576]
[1744894761037,0.708938,84814.0,84813.0,0.5097576]
[1744894761432,0.698938,84814.0,84813.0,0.5097576]
[1744894761637,0.698938,84814.0,84813.0,0.5087576]
[1744894761841,0.699938,84814.0,84813.0,0.5087576]
[1744894763046,0.709938,84814.0,84813.0,0.5087576]
[1744894768847,0.709938,84814.0,84813.0,0.5411576]
[1744894771751,0.679338,84814.0,84813.0,0.5411576]
[1744894772058,0.709538,84814.0,84813.0,0.5411576]
[1744894772654,0.709538,84814.0,84813.0,0.55675545]
[1744894773048,0.659338,84814.0,84813.0,0.67469485]
[1744894773247,0.649338,84814.0,84813.0,0.67469485]
[1744894773449,0.649418,84814.0,84813.0,0.67469485]
[1744894773851,0.649418,84814.0,84813.0,0.55675545]
[1744894774055,0.649418,84814.0,84813.0,0.67469485]
[1744894774260,0.649418,84814.0,84813.0,0.68776432]
[1744894774856,0.649418,84814.0,84813.0,0.56982492]
[1744894775756,0.649418,84814.0,84813.0,0.68776432]
[1744894775966,0.649418,84814.0,84813.0,0.56982492]
[1744894776350,0.648418,84814.0,84813.0,0.56982492]
[1744894776556,0.648418,84814.0,84813.0,0.60192492]
[1744894776759,0.679418,84814.0,84813.0,0.60192492]
[1744894779652,0.679418,84814.0,84813.0,0.71986432]
[1744894779858,0.648418,84814.0,84813.0,0.71986432]
[1744894781357,0.648418,84814.0,84813.0,0.7267084]
[1744894782262,1.009218,84814.0,84813.0,0.7267084]
[1744894788463,1.01611176,84814.0,84813.0,0.7267084]
[1744894789764,0.65531176,84814.0,84813.0,0.7267084]
[1744894790065,1.01611176,84814.0,84813.0,0.7467084]
[1744894791668,1.01611176,84814.0,84813.0,0.74673492]
[1744894792472,0.98571176,84814.0,84813.0,0.74673492]
[1744894792869,0.98563176,84814.0,84813.0,0.74673492]
[1744894793171,0.98571176,84814.0,84813.0,0.74732533]
[1744894793372,1.01661176,84814.0,84813.0,0.74732533]
[1744894794772,1.01661176,84814.0,84813.0,0.74832533]
[1744894795664,1.01661176,84814.0,84813.0,0.74932533]
[1744894796265,0.65581176,84814.0,84813.0,0.74932533]
[1744894798873,0.65581176,84814.0,84813.0,0.7493627]
[1744894799276,0.65581176,84814.0,84813.0,0.73317444]
[1744894800573,0.65581176,84814.0,84813.0,0.73315107]
[1744894801671,0.65581176,84814.0,84813.0,0.74869107]
[1744894803380,0.65581176,84814.0,84813.0,0.63075167]
[1744894803684,0.70821176,84814.0,84813.0,0.56625167]
[1744894803875,1.19901176,84814.0,84813.0,0.55071167]
[1744894804065,1.19901176,84814.0,84813.0,0.51760168]
[1744894804271,0.0589711,84811.0,84808.0,0.00017684]
[1744894804484,0.117945,84809.0,84808.0,0.00017684]
[1744894804669,0.137945,84809.0,84808.0,0.01323005]
[1744894804869,0.242545,84809.0,84808.0,0.01323005]
[1744894805270,0.168145,84809.0,84808.0,0.13984159]
[1744894805476,0.168145,84809.0,84808.0,0.20444159]
[1744894805673,0.138025,84809.0,84808.0,0.23921623]
[1744894805865,0.137945,84809.0,84808.0,0.23921623]
[1744894806068,0.138025,84809.0,84808.0,0.23921623]
[1744894806468,0.137945,84809.0,84808.0,0.24021623]
[1744894806673,0.138025,84809.0,84808.0,0.24021623]
[1744894807873,0.137945,84809.0,84808.0,0.23921623]
[1744894808068,0.138025,84809.0,84808.0,0.23921623]
[1744894808882,0.139025,84809.0,84808.0,0.23621623]
[1744894809269,0.139025,84809.0,84808.0,0.23624461]
[1744894809869,0.138025,84809.0,84808.0,0.23624461]
[1744894810075,0.139025,84809.0,84808.0,0.23624461]
[1744894810282,0.171925,84809.0,84808.0,0.23624461]
[1744894810981,0.171925,84809.0,84808.0,0.23524461]
[1744894811179,0.171925,84809.0,84808.0,0.23624461]
[1744894812381,0.139025,84809.0,84808.0,0.23624461]
[1744894812880,0.139025,84809.0,84808.0,0.23631869]
[1744894814986,0.139025,84809.0,84808.0,0.23636182]
[1744894815282,0.139025,84809.0,84808.0,0.23636201]
[1744894816178,0.170725,84809.0,84808.0,0.23636201]
[1744894816581,0.170725,84809.0,84808.0,0.23623924]
[1744894819591,0.170725,84809.0,84808.0,0.08729284]
[1744894819789,0.200925,84809.0,84808.0,0.08729284]
[1744894820177,0.210925,84809.0,84808.0,0.05569284]
[1744894820791,0.210925,84809.0,84808.0,0.17363924]
[1744894827599,0.210925,84809.0,84808.0,0.1736525]
[1744894829086,0.210925,84809.0,84808.0,0.17360638]
[1744894837195,0.210925,84809.0,84808.0,0.20570638]
[1744894838501,0.210845,84809.0,84808.0,0.20570638]
[1744894838701,0.210845,84809.0,84808.0,0.20572311]
[1744894840500,0.200845,84809.0,84808.0,0.20572311]
[1744894846404,0.200845,84809.0,84808.0,0.08777671]
[1744894846806,0.200845,84809.0,84808.0,0.20572311]
[1744894847906,0.200845,84809.0,84808.0,0.19268838]
[1744894848212,0.200845,84809.0,84808.0,0.2057133]
[1744894848814,0.200845,84809.0,84808.0,0.0877669]
[1744894849203,0.170645,84809.0,84808.0,0.0877669]
[1744894850817,0.170645,84809.0,84808.0,0.2057133]
[1744894851602,0.170645,84809.0,84808.0,0.20571919]
[1744894854822,0.170645,84809.0,84808.0,0.02287279]
[1744894855120,0.201445,84809.0,84808.0,0.02287279]
[1744894855316,0.201445,84809.0,84808.0,0.02283539]
[1744894855718,0.201445,84809.0,84808.0,0.05423539]
[1744894856023,0.211445,84809.0,84808.0,0.05423539]
[1744894857317,0.211445,84809.0,84808.0,0.05416793]
[1744894857907,0.572245,84809.0,84808.0,0.05416793]
[1744894858913,0.562245,84809.0,84808.0,0.04124198]
[1744894859218,0.562245,84809.0,84808.0,0.05419568]
[1744894860116,0.562245,84809.0,84808.0,0.0541924]
[1744894861723,0.170645,84809.0,84808.0,0.1721388]
[1744894861918,0.139025,84809.0,84808.0,0.1721388]
[1744894862119,0.139025,84809.0,84808.0,0.23665288]
[1744894862513,0.138945,84809.0,84808.0,0.23665288]
[1744894862713,0.139025,84809.0,84808.0,0.23665288]
[1744894863922,0.139025,84809.0,84808.0,0.59745288]
[1744894864627,0.139025,84809.0,84808.0,0.61745288]
[1744894864921,0.139025,84809.0,84808.0,0.61747195]
[1744894865222,0.170425,84809.0,84808.0,0.61747195]
[1744894865819,0.170425,84809.0,84808.0,0.6173903]
[1744894867318,0.170425,84809.0,84808.0,0.61742625]
[1744894868413,0.170425,84809.0,84808.0,0.25662625]
[1744894868620,0.170425,84809.0,84808.0,0.10737985]
[1744894869121,0.202525,84809.0,84808.0,0.10737985]
[1744894869527,0.202525,84809.0,84808.0,0.2253039]
[1744894869712,0.202525,84809.0,84808.0,0.0427575]
[1744894870114,0.202525,84809.0,84808.0,0.0734575]
[1744894870519,0.170425,84809.0,84808.0,0.2240039]
[1744894870824,0.170425,84809.0,84808.0,0.1060575]
[1744894871130,0.170425,84809.0,84808.0,0.2240039]
[1744894876027,0.170425,84809.0,84808.0,0.22401479]
[1744894879530,0.170345,84809.0,84808.0,0.22401479]
[1744894879731,0.170425,84809.0,84808.0,0.22401479]
[1744894884231,0.200725,84809.0,84808.0,0.22401479]
[1744894887125,0.200725,84809.0,84808.0,0.22301479]
[1744894887317,0.200725,84809.0,84808.0,0.16071479]
[1744894887519,0.200725,84809.0,84808.0,0.19121479]
[1744894890022,0.200725,84809.0,84808.0,0.16071479]
[1744894890223,0.200725,84809.0,84808.0,0.04276839]
[1744894890732,0.200725,84809.0,84808.0,0.03410325]
[1744894891536,0.200725,84809.0,84808.0,0.03410073]
[1744894893438,0.200725,84809.0,84808.0,0.03403583]
[1744894893822,0.200725,84809.0,84808.0,0.02117684]
[1744894896129,0.200725,84809.0,84804.0,0.00650158]
[1744894896130,0.1179505,84805.0,84804.0,0.00650158]
[1744894896330,0.1179505,84805.0,84797.0,0.01847809]
[1744894896331,0.058978,84802.0,84797.0,0.01847809]
[1744894896532,0.4787575,84800.0,84797.0,0.01847809]
[1744894896830,0.7487575,84800.0,84797.0,0.01847809]
[1744894897336,0.8104575,84800.0,84797.0,0.01847809]
[1744894897729,0.0589794,84799.0,84787.0,0.00684465]
[1744894897931,0.1179895,84777.0,84776.0,5e-08]
[1744894898237,0.7287895,84777.0,84776.0,5e-08]
[1744894898537,0.4988695,84777.0,84776.0,5e-08]
[1744894898731,0.5188695,84777.0,84776.0,5e-08]
[1744894898927,0.1179923,84775.0,84774.0,0.31342142]
[1744894899129,0.1179951,84773.0,84772.0,5e-08]
[1744894899328,0.3879951,84773.0,84772.0,5e-08]
[1744894899533,0.1180006,84769.0,84767.0,0.00652751]
[1744894899729,0.1180048,84766.0,84757.0,0.02231046]
[1744894899933,0.3580048,84766.0,84757.0,0.02231046]
[1744894900344,0.3580048,84766.0,84763.0,0.31834941]
[1744894900843,0.3580048,84766.0,84765.0,0.01264215]
[1744894901539,0.4186048,84766.0,84765.0,0.01264215]
[1744894901945,0.4186048,84766.0,84765.0,0.01464215]
[1744894902639,0.4186848,84766.0,84765.0,0.01464215]
[1744894903041,0.3882048,84766.0,84765.0,0.19544835]
[1744894903233,0.00014581,84790.0,84772.0,0.0589978]
[1744894903556,0.11815524,84785.0,84784.0,0.1179798]
[1744894904148,0.11823524,84785.0,84784.0,0.1798798]
[1744894904440,0.005,84800.0,84796.0,0.0589802]
[1744894904636,0.1229575,84800.0,84799.0,0.1179589]
[1744894904838,0.005,84800.0,84799.0,0.1179589]
[1744894905244,0.1229575,84800.0,84799.0,0.1179589]
[1744894905835,0.1230375,84800.0,84799.0,0.1179589]
[1744894906235,0.1230375,84800.0,84799.0,0.1139589]
[1744894906434,0.1179603,84798.0,84797.0,0.0619]
[1744894906840,0.1279603,84798.0,84797.0,0.0619]
[1744894907236,0.1279603,84798.0,84791.0,0.02017695]
[1744894907237,0.1179686,84792.0,84791.0,0.02017695]
[1744894907441,0.1779686,84792.0,84791.0,0.00017695]
[1744894908736,0.1779686,84792.0,84791.0,0.00217695]
[1744894909541,0.1779686,84792.0,84791.0,0.00417695]
[1744894912144,0.1779686,84792.0,84786.0,0.0636]
[1744894912145,0.1179756,84787.0,84786.0,0.0636]
[1744894912447,0.0589891,84786.0,84780.0,0.02]
[1744894912642,0.1179895,84777.0,84776.0,0.02]
[1744894912845,0.1179923,84775.0,84774.0,0.0311]
[1744894913350,0.1279923,84775.0,84774.0,0.0311]
[1744894913535,0.1612923,84775.0,84774.0,0.0311]
[1744894913742,0.1942923,84775.0,84774.0,0.0311]
[1744894916235,0.1279923,84775.0,84774.0,0.0311]
[1744894916435,0.1180723,84775.0,84774.0,0.1490937]
[1744894916638,0.4788723,84775.0,84774.0,0.0311]
[1744894917048,0.4788723,84775.0,84774.0,0.0639]
[1744894918841,0.5089723,84775.0,84774.0,0.0639]
[1744894920044,0.4788723,84775.0,84774.0,0.0639]
[1744894920645,0.1180723,84775.0,84774.0,0.1818937]
[1744894920845,0.058993,84780.0,84779.0,0.1769765]
[1744894921151,0.00017695,84783.0,84782.0,0.1179825]
[1744894921339,0.08956031,84792.0,84791.0,0.11797]
[1744894921539,0.005,84800.0,84796.0,0.1179631]
[1744894921737,0.1229584,84800.0,84796.0,0.1179631]
[1744894921942,0.005,84800.0,84796.0,0.1179631]
[1744894922143,0.23737544,84797.0,84796.0,0.1824631]
[1744894922743,0.23745544,84797.0,84796.0,0.1824631]
[1744894923451,0.23745544,84797.0,84796.0,0.1834631]
[1744894923938,0.11949374,84797.0,84796.0,0.1834631]
[1744894924138,0.23745544,84797.0,84796.0,0.1834631]
[1744894924338,0.23737544,84797.0,84796.0,0.1844631]
[1744894924543,0.23745544,84797.0,84796.0,0.1844631]
[1744894924746,0.1180417,84797.0,84796.0,0.1844631]
[1744894925051,0.1180417,84797.0,84796.0,0.1854631]
[1744894925646,0.1180417,84797.0,84796.0,0.1844631]
[1744894925852,0.1180417,84797.0,84796.0,0.1864631]
[1744894926248,0.4788417,84797.0,84796.0,0.1864631]
[1744894926447,0.4788417,84797.0,84796.0,0.1844631]
[1744894927041,0.4788417,84797.0,84796.0,0.1834631]
[1744894927240,0.4798417,84797.0,84796.0,0.1834631]
[1744894927442,0.1190417,84797.0,84796.0,0.1834631]
[1744894927847,0.00108,84797.0,84796.0,0.1824631]
[1744894928154,0.1190417,84797.0,84796.0,0.1824631]
[1744894928544,0.1189617,84797.0,84796.0,0.1824631]